[Event "*** SCC Grand Prix: Titled Tuesday Blitz"]
[Site "Chess.com"]
[Date "2020.09.08"]
[Round "4"]
[White "dpopadic"]
[Black "Gorin_Leonid"]
[Result "1-0"]
[WhiteElo "2363"]
[BlackElo "2617"]
[TimeControl "180+1"]
[EndTime "10:39:23 PDT"]
[Termination "dpopadic won by resignation"]

1. e4 {[%clk 0:03:00.9]} 1... e5 {[%clk 0:02:59.4]} 2. Nf3 {[%clk 0:03:00.3]}
2... Nc6 {[%clk 0:02:59.6]} 3. Bb5 {[%clk 0:02:58.9]} 3... a6 {[%clk 0:02:59.7]}
4. Ba4 {[%clk 0:02:58.9]} 4... Nf6 {[%clk 0:02:59.8]} 5. O-O {[%clk 0:02:58.5]}
5... Be7 {[%clk 0:02:59.5]} 6. Re1 {[%clk 0:02:58.5]} 6... b5 {[%clk 0:02:59.5]}
7. Bb3 {[%clk 0:02:59]} 7... d6 {[%clk 0:02:59.7]} 8. c3 {[%clk 0:02:58.6]} 8...
O-O {[%clk 0:02:59.5]} 9. h3 {[%clk 0:02:58.8]} 9... a5 {[%clk 0:02:58.5]} 10.
a4 {[%clk 0:02:54.8]} 10... b4 {[%clk 0:02:58.2]} 11. d3 {[%clk 0:02:55]} 11...
Ba6 {[%clk 0:02:56.3]} 12. Qe2 {[%clk 0:02:49.1]} 12... Rb8 {[%clk 0:02:54.2]}
13. Nbd2 {[%clk 0:02:47.9]} 13... h6 {[%clk 0:02:50.4]} 14. Bc4 {[%clk
0:02:47.8]} 14... Bxc4 {[%clk 0:02:43.9]} 15. Nxc4 {[%clk 0:02:46.7]} 15... Re8
{[%clk 0:02:43.6]} 16. Nh2 {[%clk 0:02:32.9]} 16... Bf8 {[%clk 0:02:41.4]} 17.
Ng4 {[%clk 0:02:32.4]} 17... Nxg4 {[%clk 0:02:23.8]} 18. Qxg4 {[%clk 0:02:31.6]}
18... Kh8 {[%clk 0:02:23.9]} 19. f4 {[%clk 0:02:23.3]} 19... d5 {[%clk 0:02:14]}
20. Nxe5 {[%clk 0:02:06.7]} 20... Nxe5 {[%clk 0:02:11.9]} 21. fxe5 {[%clk
0:02:06.8]} 21... Rxe5 {[%clk 0:02:05.8]} 22. Bf4 {[%clk 0:02:04.7]} 22... Re6
{[%clk 0:01:57]} 23. exd5 {[%clk 0:02:02.8]} 23... Rxe1+ {[%clk 0:01:55.2]} 24.
Rxe1 {[%clk 0:02:01.7]} 24... Qxd5 {[%clk 0:01:55.6]} 25. Qf3 {[%clk 0:01:48.5]}
25... Qd7 {[%clk 0:01:26.7]} 26. Qe4 {[%clk 0:01:37.2]} 26... Rd8 {[%clk
0:01:16.9]} 27. cxb4 {[%clk 0:01:20.1]} 27... Bxb4 {[%clk 0:01:14.3]} 28. Rc1
{[%clk 0:01:18.9]} 28... Qxd3 {[%clk 0:01:07.7]} 29. Qxd3 {[%clk 0:01:17.2]}
29... Rxd3 {[%clk 0:01:07.3]} 30. Rxc7 {[%clk 0:01:16]} 30... f6 {[%clk
0:01:05.2]} 31. Rc2 {[%clk 0:01:09.3]} 31... g5 {[%clk 0:01:03.2]} 32. Bc7
{[%clk 0:01:02.9]} 32... Kg7 {[%clk 0:01:01.7]} 33. Bb6 {[%clk 0:01:02.4]} 33...
Rd6 {[%clk 0:00:54.1]} 34. Bc5 {[%clk 0:00:57.9]} 34... Rc6 {[%clk 0:00:53.6]}
35. Bf8+ {[%clk 0:00:56.3]} 35... Bxf8 {[%clk 0:00:51.4]} 36. Rxc6 {[%clk
0:00:56.8]} 36... Kg6 {[%clk 0:00:51.8]} 37. g4 {[%clk 0:00:55.9]} 37... Be7
{[%clk 0:00:50.7]} 38. Kg2 {[%clk 0:00:55.9]} 38... h5 {[%clk 0:00:50.4]} 39.
Kf3 {[%clk 0:00:55.2]} 39... hxg4+ {[%clk 0:00:49.6]} 40. hxg4 {[%clk
0:00:54.5]} 40... Bb4 {[%clk 0:00:49.4]} 41. Ke4 {[%clk 0:00:54.3]} 41... Bd2
{[%clk 0:00:47.9]} 42. b3 {[%clk 0:00:52.7]} 42... Bb4 {[%clk 0:00:47.8]} 43.
Rb6 {[%clk 0:00:51.1]} 43... Be1 {[%clk 0:00:47.4]} 44. Rb5 {[%clk 0:00:50.9]}
44... Bd2 {[%clk 0:00:46]} 45. Rb8 {[%clk 0:00:48]} 45... Bc3 {[%clk 0:00:44.1]}
46. Rg8+ {[%clk 0:00:46.1]} 46... Kf7 {[%clk 0:00:44]} 47. Rc8 {[%clk
0:00:46.4]} 47... Bd2 {[%clk 0:00:41.7]} 48. Kf5 {[%clk 0:00:46.5]} 1-0

[Event "*** SCC Grand Prix: Titled Tuesday Blitz"]
[Site "Chess.com"]
[Date "2020.09.08"]
[Round "4"]
[White "Firouzja2003"]
[Black "GianmarcoVaR"]
[Result "1-0"]
[WhiteElo "2980"]
[BlackElo "2558"]
[TimeControl "180+1"]
[EndTime "10:39:24 PDT"]
[Termination "Firouzja2003 won on time"]

1. Nf3 {[%clk 0:03:00.9]} 1... Nf6 {[%clk 0:02:56.2]} 2. g3 {[%clk 0:03:01.3]}
2... d5 {[%clk 0:02:55.2]} 3. Bg2 {[%clk 0:03:01.7]} 3... Bg4 {[%clk 0:02:54.8]}
4. c4 {[%clk 0:03:00.1]} 4... c6 {[%clk 0:02:44.7]} 5. Ne5 {[%clk 0:02:55.2]}
5... Be6 {[%clk 0:02:44.7]} 6. cxd5 {[%clk 0:02:54.2]} 6... Bxd5 {[%clk
0:02:45.1]} 7. Nf3 {[%clk 0:02:54.7]} 7... e5 {[%clk 0:02:40.2]} 8. O-O {[%clk
0:02:54.1]} 8... Nbd7 {[%clk 0:02:38.1]} 9. Nc3 {[%clk 0:02:54]} 9... Bd6 {[%clk
0:02:34]} 10. d4 {[%clk 0:02:45.3]} 10... Bxf3 {[%clk 0:02:08]} 11. Bxf3 {[%clk
0:02:43.7]} 11... O-O {[%clk 0:02:07.9]} 12. d5 {[%clk 0:02:42.1]} 12... c5
{[%clk 0:02:05.1]} 13. e4 {[%clk 0:02:31]} 13... a6 {[%clk 0:01:53.3]} 14. a4
{[%clk 0:02:31.5]} 14... c4 {[%clk 0:01:53.3]} 15. Qe2 {[%clk 0:02:16.4]} 15...
Rc8 {[%clk 0:01:34.2]} 16. Bg2 {[%clk 0:02:16.4]} 16... Nc5 {[%clk 0:01:31.4]}
17. Bh3 {[%clk 0:02:14.3]} 17... Rc7 {[%clk 0:01:30.8]} 18. Be3 {[%clk
0:02:14.8]} 18... Nb3 {[%clk 0:01:17.8]} 19. Rad1 {[%clk 0:02:13.3]} 19... Bc5
{[%clk 0:01:15.1]} 20. d6 {[%clk 0:01:55.3]} 20... Rc6 {[%clk 0:01:05.4]} 21.
Bxc5 {[%clk 0:01:55.4]} 21... Rxc5 {[%clk 0:01:04.6]} 22. f4 {[%clk 0:01:55.6]}
22... Qb6 {[%clk 0:00:49]} 23. Qe3 {[%clk 0:01:37.8]} 23... Qc6 {[%clk
0:00:11.9]} 24. fxe5 {[%clk 0:01:04.4]} 24... Rxe5 {[%clk 0:00:12.1]} 25. Rxf6
{[%clk 0:00:46.4]} 25... gxf6 {[%clk 0:00:11.8]} 26. Qh6 {[%clk 0:00:44.7]}
26... Qc5+ {[%clk 0:00:02.4]} 27. Kg2 {[%clk 0:00:43.5]} 27... Rh5 {[%clk
0:00:03]} 28. Qxf8+ {[%clk 0:00:35.6]} 28... Kxf8 {[%clk 0:00:02.7]} 29. d7
{[%clk 0:00:36.5]} 29... Qe7 {[%clk 0:00:01.2]} 30. d8=Q+ {[%clk 0:00:36.7]}
30... Qxd8 {[%clk 0:00:01.6]} 31. Rxd8+ {[%clk 0:00:37.6]} 31... Kg7 {[%clk
0:00:02.4]} 32. Bf5 {[%clk 0:00:38.2]} 32... Na5 {[%clk 0:00:01.2]} 33. g4
{[%clk 0:00:36.9]} 1-0

[Event "*** SCC Grand Prix: Titled Tuesday Blitz"]
[Site "Chess.com"]
[Date "2020.09.08"]
[Round "4"]
[White "vinniethepooh"]
[Black "chegueps"]
[Result "1-0"]
[WhiteElo "2655"]
[BlackElo "2465"]
[TimeControl "180+1"]
[EndTime "10:39:25 PDT"]
[Termination "vinniethepooh won by checkmate"]

1. Nf3 {[%clk 0:03:00.9]} 1... Nf6 {[%clk 0:02:59.1]} 2. g3 {[%clk 0:03:01.2]}
2... g6 {[%clk 0:02:57.7]} 3. Bg2 {[%clk 0:03:02.1]} 3... d5 {[%clk 0:02:58.3]}
4. O-O {[%clk 0:03:01.4]} 4... Bg7 {[%clk 0:02:59]} 5. c4 {[%clk 0:03:01.5]}
5... c6 {[%clk 0:02:58.5]} 6. b3 {[%clk 0:03:01.1]} 6... Ne4 {[%clk 0:02:56.9]}
7. d4 {[%clk 0:03:00.2]} 7... O-O {[%clk 0:02:57]} 8. Bb2 {[%clk 0:03:00.2]}
8... Bg4 {[%clk 0:02:56.4]} 9. Nbd2 {[%clk 0:02:51.8]} 9... Nxd2 {[%clk
0:02:41.2]} 10. Qxd2 {[%clk 0:02:52.3]} 10... Nd7 {[%clk 0:02:42.1]} 11. h3
{[%clk 0:02:48]} 11... Bxf3 {[%clk 0:02:37.6]} 12. Bxf3 {[%clk 0:02:48.8]} 12...
e6 {[%clk 0:02:35.9]} 13. Rac1 {[%clk 0:02:44.7]} 13... a5 {[%clk 0:02:30.7]}
14. Rfd1 {[%clk 0:02:38.1]} 14... a4 {[%clk 0:02:28.7]} 15. b4 {[%clk
0:02:33.4]} 15... dxc4 {[%clk 0:02:28.7]} 16. Rxc4 {[%clk 0:02:33.7]} 16... Nb6
{[%clk 0:02:29.6]} 17. Rc5 {[%clk 0:02:30.6]} 17... a3 {[%clk 0:02:27.6]} 18.
Ba1 {[%clk 0:02:29.2]} 18... Nd5 {[%clk 0:02:21.3]} 19. e4 {[%clk 0:02:27.1]}
19... Nc7 {[%clk 0:02:21]} 20. Be2 {[%clk 0:02:18.1]} 20... Qe7 {[%clk
0:02:16.5]} 21. h4 {[%clk 0:02:15.6]} 21... Rfd8 {[%clk 0:02:14]} 22. h5 {[%clk
0:02:13.3]} 22... Rd7 {[%clk 0:02:07.5]} 23. h6 {[%clk 0:01:49.8]} 23... Bh8
{[%clk 0:02:06.9]} 24. Qe3 {[%clk 0:01:49.9]} 24... Rad8 {[%clk 0:02:04.2]} 25.
Kg2 {[%clk 0:01:45.7]} 25... e5 {[%clk 0:02:00.5]} 26. d5 {[%clk 0:01:25.9]}
26... cxd5 {[%clk 0:01:59.6]} 27. Bg4 {[%clk 0:01:20]} 27... Rd6 {[%clk
0:01:47.7]} 28. Qc1 {[%clk 0:01:05.2]} 28... Na6 {[%clk 0:01:25.5]} 29. Rcxd5
{[%clk 0:00:57.4]} 29... Rxd5 {[%clk 0:01:22.9]} 30. Rxd5 {[%clk 0:00:28.3]}
30... Rxd5 {[%clk 0:01:22.5]} 31. exd5 {[%clk 0:00:29.2]} 31... Nxb4 {[%clk
0:01:22.6]} 32. Qc8+ {[%clk 0:00:28.3]} 32... Qf8 {[%clk 0:01:23]} 33. d6 {[%clk
0:00:18.2]} 33... Qxc8 {[%clk 0:01:10.6]} 34. Bxc8 {[%clk 0:00:19]} 34... b6
{[%clk 0:01:06.1]} 35. d7 {[%clk 0:00:10.7]} 35... Nc6 {[%clk 0:01:06.3]} 36.
Bc3 {[%clk 0:00:04.6]} 36... f5 {[%clk 0:00:56.7]} 37. Bb7 {[%clk 0:00:03.7]}
37... Nd8 {[%clk 0:00:56.4]} 38. Bd5+ {[%clk 0:00:03.8]} 38... Kf8 {[%clk
0:00:55.6]} 39. Bb4# {[%clk 0:00:03.3]} 1-0

[Event "*** SCC Grand Prix: Titled Tuesday Blitz"]
[Site "Chess.com"]
[Date "2020.09.08"]
[Round "4"]
[White "MrrRefrao"]
[Black "akanga001"]
[Result "1-0"]
[WhiteElo "2218"]
[BlackElo "1886"]
[TimeControl "180+1"]
[EndTime "10:39:25 PDT"]
[Termination "MrrRefrao won by checkmate"]

1. e4 {[%clk 0:03:00.9]} 1... c6 {[%clk 0:02:59.8]} 2. Nc3 {[%clk 0:02:59.3]}
2... d5 {[%clk 0:03:00.7]} 3. Nf3 {[%clk 0:03:00]} 3... dxe4 {[%clk 0:03:00]} 4.
Nxe4 {[%clk 0:03:00.9]} 4... Nf6 {[%clk 0:03:00.2]} 5. Qe2 {[%clk 0:03:01.1]}
5... Bf5 {[%clk 0:02:58.4]} 6. Nxf6+ {[%clk 0:02:59.8]} 6... gxf6 {[%clk
0:02:59.3]} 7. d3 {[%clk 0:02:56]} 7... e6 {[%clk 0:02:58.8]} 8. Nh4 {[%clk
0:02:55.1]} 8... Bg6 {[%clk 0:02:58.3]} 9. g3 {[%clk 0:02:54.1]} 9... f5 {[%clk
0:02:55.8]} 10. Bg2 {[%clk 0:02:48]} 10... Be7 {[%clk 0:02:55.6]} 11. Nxg6
{[%clk 0:02:47.4]} 11... hxg6 {[%clk 0:02:54.6]} 12. Bd2 {[%clk 0:02:45.1]}
12... Bf6 {[%clk 0:02:53.1]} 13. c3 {[%clk 0:02:45.1]} 13... Nd7 {[%clk
0:02:52.1]} 14. d4 {[%clk 0:02:45.2]} 14... Nb6 {[%clk 0:02:50.4]} 15. a4 {[%clk
0:02:38.4]} 15... Nd5 {[%clk 0:02:46.3]} 16. a5 {[%clk 0:02:38.6]} 16... a6
{[%clk 0:02:42.2]} 17. O-O {[%clk 0:02:37.1]} 17... O-O {[%clk 0:02:35.9]} 18.
b4 {[%clk 0:02:16.7]} 18... Kg7 {[%clk 0:02:35.1]} 19. Rad1 {[%clk 0:02:14.4]}
19... Rh8 {[%clk 0:02:32.6]} 20. c4 {[%clk 0:02:14.1]} 20... Ne7 {[%clk
0:02:27.9]} 21. Bc3 {[%clk 0:02:10.6]} 21... Qg8 {[%clk 0:02:25.3]} 22. h4
{[%clk 0:01:56.6]} 22... Rd8 {[%clk 0:02:13]} 23. Qe3 {[%clk 0:01:53.9]} 23...
Kf8 {[%clk 0:02:07]} 24. Rfe1 {[%clk 0:01:35.4]} 24... Qg7 {[%clk 0:02:06.2]}
25. Qf4 {[%clk 0:01:28]} 25... g5 {[%clk 0:02:05.5]} 26. hxg5 {[%clk 0:01:26.9]}
26... Bxg5 {[%clk 0:02:05]} 27. Qc7 {[%clk 0:01:26.6]} 27... Re8 {[%clk
0:02:02.7]} 28. Ba1 {[%clk 0:01:20.3]} 28... Bf6 {[%clk 0:01:59.1]} 29. Qxb7
{[%clk 0:01:20]} 29... Qh7 {[%clk 0:01:58.1]} 30. Qxa6 {[%clk 0:01:10.7]} 30...
f4 {[%clk 0:01:55.5]} 31. d5 {[%clk 0:00:28.4]} 31... Bxa1 {[%clk 0:01:51.1]}
32. Rxa1 {[%clk 0:00:17.5]} 32... fxg3 {[%clk 0:01:50]} 33. f3 {[%clk
0:00:17.3]} 33... cxd5 {[%clk 0:01:48]} 34. cxd5 {[%clk 0:00:16.8]} 34... Nxd5
{[%clk 0:01:47.8]} 35. Qd6+ {[%clk 0:00:14.5]} 35... Kg8 {[%clk 0:01:46.5]} 36.
a6 {[%clk 0:00:13.6]} 36... Qh2+ {[%clk 0:01:45.6]} 37. Kf1 {[%clk 0:00:13]}
37... Kg7 {[%clk 0:01:31.2]} 38. a7 {[%clk 0:00:10.6]} 38... Rd8 {[%clk
0:01:26.9]} 39. Qe5+ {[%clk 0:00:09.9]} 39... f6 {[%clk 0:01:27]} 40. Qxe6
{[%clk 0:00:08.8]} 40... Nf4 {[%clk 0:01:27.4]} 41. Qe7+ {[%clk 0:00:08.8]}
41... Kg6 {[%clk 0:01:26.5]} 42. Qe4+ {[%clk 0:00:07.6]} 42... Kg5 {[%clk
0:01:25.8]} 43. Ra5+ {[%clk 0:00:08]} 43... Rd5 {[%clk 0:01:20.9]} 44. Rxd5+
{[%clk 0:00:07.3]} 44... Nxd5 {[%clk 0:01:20.7]} 45. Qxd5+ {[%clk 0:00:08.2]}
45... f5 {[%clk 0:01:20.5]} 46. a8=Q {[%clk 0:00:08.3]} 46... Rxa8 {[%clk
0:01:13.5]} 47. Qxa8 {[%clk 0:00:09.2]} 47... Qh7 {[%clk 0:01:11.6]} 48. Qd8+
{[%clk 0:00:09.2]} 48... Kf4 {[%clk 0:01:08.3]} 49. Qd2# {[%clk 0:00:09.6]} 1-0

[Event "*** SCC Grand Prix: Titled Tuesday Blitz"]
[Site "Chess.com"]
[Date "2020.09.08"]
[Round "4"]
[White "Makswolf200817"]
[Black "WinstonSilvakov"]
[Result "1-0"]
[WhiteElo "2411"]
[BlackElo "2132"]
[TimeControl "180+1"]
[EndTime "10:39:28 PDT"]
[Termination "Makswolf200817 won by resignation"]

1. d4 {[%clk 0:03:00.9]} 1... Nf6 {[%clk 0:03:00.9]} 2. c4 {[%clk 0:03:00.6]}
2... e5 {[%clk 0:02:57.8]} 3. dxe5 {[%clk 0:02:58.8]} 3... Ng4 {[%clk
0:02:56.6]} 4. Nf3 {[%clk 0:02:57.9]} 4... Bc5 {[%clk 0:02:53.7]} 5. e3 {[%clk
0:02:55.9]} 5... Nc6 {[%clk 0:02:52.3]} 6. Nc3 {[%clk 0:02:42.2]} 6... Ngxe5
{[%clk 0:02:51.4]} 7. Be2 {[%clk 0:02:39.6]} 7... Nxf3+ {[%clk 0:02:50.5]} 8.
Bxf3 {[%clk 0:02:39.9]} 8... Ne5 {[%clk 0:02:51.1]} 9. Be2 {[%clk 0:02:38.9]}
9... a5 {[%clk 0:02:51.5]} 10. O-O {[%clk 0:02:39]} 10... Ra6 {[%clk 0:02:46.9]}
11. Kh1 {[%clk 0:02:38.3]} 11... Rh6 {[%clk 0:02:43.7]} 12. f4 {[%clk
0:02:37.5]} 12... Qh4 {[%clk 0:02:37.7]} 13. h3 {[%clk 0:02:37.5]} 13... d6
{[%clk 0:02:33.4]} 14. f5 {[%clk 0:02:18.9]} 14... Qg3 {[%clk 0:02:19.5]} 15.
Qe1 {[%clk 0:02:14.9]} 15... Qxe1 {[%clk 0:02:03.4]} 16. Rxe1 {[%clk 0:02:15.7]}
16... Bxf5 {[%clk 0:02:02.6]} 17. e4 {[%clk 0:02:14.5]} 17... Be6 {[%clk
0:01:56.2]} 18. Bxh6 {[%clk 0:02:13]} 18... gxh6 {[%clk 0:01:54.3]} 19. b3
{[%clk 0:02:11.5]} 19... Rg8 {[%clk 0:01:42.9]} 20. Nd5 {[%clk 0:01:59.5]} 20...
Kd8 {[%clk 0:01:38.8]} 21. Nf6 {[%clk 0:01:51.7]} 21... Rg6 {[%clk 0:01:31.9]}
22. Nxh7 {[%clk 0:01:37.8]} 22... Ke7 {[%clk 0:01:21.9]} 23. Rf1 {[%clk
0:01:37.1]} 23... Nc6 {[%clk 0:01:16.3]} 24. Bh5 {[%clk 0:01:31.9]} 24... Rg7
{[%clk 0:01:14.4]} 25. Nf6 {[%clk 0:01:23.7]} 25... Bd4 {[%clk 0:01:09.5]} 26.
Nd5+ {[%clk 0:01:23.5]} 26... Bxd5 {[%clk 0:01:07.1]} 27. cxd5 {[%clk
0:01:23.4]} 27... Bxa1 {[%clk 0:01:07.9]} 28. dxc6 {[%clk 0:01:23.5]} 28... Bd4
{[%clk 0:01:00.7]} 29. cxb7 {[%clk 0:01:23.5]} 29... Ba7 {[%clk 0:01:00.1]} 30.
Rf5 {[%clk 0:01:22.4]} 30... Rg5 {[%clk 0:00:29.3]} 31. Rxf7+ {[%clk 0:01:20.5]}
31... Ke6 {[%clk 0:00:29.4]} 32. Rf5 {[%clk 0:01:19.1]} 32... Rxf5 {[%clk
0:00:28.3]} 33. Bg4 {[%clk 0:01:19]} 33... Ke5 {[%clk 0:00:27]} 34. Bxf5 {[%clk
0:01:18.6]} 34... d5 {[%clk 0:00:27.5]} 35. g4 {[%clk 0:01:12.1]} 35... dxe4
{[%clk 0:00:28.4]} 36. Kg2 {[%clk 0:01:10.1]} 36... c5 {[%clk 0:00:29.3]} 37.
Kf1 {[%clk 0:01:08.7]} 37... Kf4 {[%clk 0:00:28.5]} 38. Ke2 {[%clk 0:01:06.1]}
38... c4 {[%clk 0:00:26.8]} 39. bxc4 {[%clk 0:01:05.2]} 39... a4 {[%clk
0:00:20.5]} 40. c5 {[%clk 0:01:04]} 40... Bb8 {[%clk 0:00:19.8]} 41. a3 {[%clk
0:01:02.1]} 41... Bc7 {[%clk 0:00:16.2]} 42. Bd7 {[%clk 0:01:01.2]} 42... Ke5
{[%clk 0:00:12.6]} 43. Bxa4 {[%clk 0:01:00.8]} 43... Kd5 {[%clk 0:00:11.4]} 44.
c6 {[%clk 0:01:00.7]} 44... Kd4 {[%clk 0:00:09.4]} 45. Bb5 {[%clk 0:00:59.9]}
45... Kc5 {[%clk 0:00:08.6]} 46. a4 {[%clk 0:01:00]} 46... Kb6 {[%clk
0:00:06.1]} 47. Ke3 {[%clk 0:00:59.5]} 1-0

[Event "*** SCC Grand Prix: Titled Tuesday Blitz"]
[Site "Chess.com"]
[Date "2020.09.08"]
[Round "4"]
[White "DIM90"]
[Black "Fh2411"]
[Result "1-0"]
[WhiteElo "2349"]
[BlackElo "2512"]
[TimeControl "180+1"]
[EndTime "10:39:29 PDT"]
[Termination "DIM90 won by resignation"]

1. e4 {[%clk 0:01:58.3]} 1... c5 {[%clk 0:02:58]} 2. d4 {[%clk 0:01:58.5]} 2...
cxd4 {[%clk 0:02:57.9]} 3. c3 {[%clk 0:01:59.2]} 3... d5 {[%clk 0:02:57.4]} 4.
exd5 {[%clk 0:01:58.8]} 4... Qxd5 {[%clk 0:02:56.2]} 5. cxd4 {[%clk 0:01:58.8]}
5... e6 {[%clk 0:02:55.3]} 6. Nf3 {[%clk 0:01:59.1]} 6... Nf6 {[%clk 0:02:54.6]}
7. Be2 {[%clk 0:01:59.2]} 7... Nc6 {[%clk 0:02:53.5]} 8. O-O {[%clk 0:01:59.7]}
8... Be7 {[%clk 0:02:52.5]} 9. Nc3 {[%clk 0:02:00.3]} 9... Qd8 {[%clk 0:02:53]}
10. Qb3 {[%clk 0:02:00.2]} 10... O-O {[%clk 0:02:51.8]} 11. Rd1 {[%clk
0:01:59.8]} 11... Nb4 {[%clk 0:02:32.4]} 12. Bg5 {[%clk 0:01:55.6]} 12... Nbd5
{[%clk 0:02:31.5]} 13. Nxd5 {[%clk 0:01:55.7]} 13... exd5 {[%clk 0:01:56.5]} 14.
Ne5 {[%clk 0:01:51.7]} 14... h6 {[%clk 0:01:28.9]} 15. Bh4 {[%clk 0:01:50.9]}
15... g5 {[%clk 0:01:00.8]} 16. Bg3 {[%clk 0:01:50.3]} 16... Ne4 {[%clk
0:01:01.3]} 17. Bf3 {[%clk 0:01:50.3]} 17... f5 {[%clk 0:00:45.9]} 18. Ng6
{[%clk 0:01:46.9]} 18... Rf7 {[%clk 0:00:41.1]} 19. Nxe7+ {[%clk 0:01:44.3]}
19... Rxe7 {[%clk 0:00:42]} 20. Be5 {[%clk 0:01:40.1]} 20... Be6 {[%clk
0:00:26.3]} 21. Bxe4 {[%clk 0:01:25.5]} 21... dxe4 {[%clk 0:00:27.2]} 22. d5
{[%clk 0:01:25.4]} 22... Qa5 {[%clk 0:00:27.1]} 23. Bf6 {[%clk 0:01:19.7]} 23...
Rf7 {[%clk 0:00:25.9]} 24. dxe6 {[%clk 0:01:19.7]} 24... Rxf6 {[%clk 0:00:26]}
25. e7+ {[%clk 0:01:20]} 25... Kg7 {[%clk 0:00:21.8]} 26. Qxb7 {[%clk
0:01:16.2]} 26... Re8 {[%clk 0:00:22.1]} 27. Rd8 {[%clk 0:00:57.5]} 27... Qa4
{[%clk 0:00:15.4]} 28. Rxe8 {[%clk 0:00:50.2]} 28... Qxe8 {[%clk 0:00:16.3]} 29.
Qxa7 {[%clk 0:00:49.7]} 29... Re6 {[%clk 0:00:15.7]} 30. Qd4+ {[%clk 0:00:47.9]}
30... Kg6 {[%clk 0:00:15.5]} 31. Qd8 {[%clk 0:00:41.1]} 31... Qxe7 {[%clk
0:00:15.3]} 32. Qxe7 {[%clk 0:00:41]} 32... Rxe7 {[%clk 0:00:16.2]} 33. a4
{[%clk 0:00:40.4]} 33... f4 {[%clk 0:00:16.6]} 34. Kf1 {[%clk 0:00:39.4]} 34...
g4 {[%clk 0:00:14.5]} 35. a5 {[%clk 0:00:38.3]} 35... Kf5 {[%clk 0:00:13.8]} 36.
a6 {[%clk 0:00:38.3]} 36... Ra7 {[%clk 0:00:08.1]} 37. b4 {[%clk 0:00:38.1]} 1-0

[Event "*** SCC Grand Prix: Titled Tuesday Blitz"]
[Site "Chess.com"]
[Date "2020.09.08"]
[Round "4"]
[White "vovachesss"]
[Black "LuckSlayeer"]
[Result "1-0"]
[WhiteElo "2683"]
[BlackElo "2478"]
[TimeControl "180+1"]
[EndTime "10:39:30 PDT"]
[Termination "vovachesss won on time"]

1. c4 {[%clk 0:03:00.9]} 1... c5 {[%clk 0:02:59.3]} 2. Nc3 {[%clk 0:02:59.6]}
2... Nc6 {[%clk 0:02:59.5]} 3. Nf3 {[%clk 0:02:58.9]} 3... Nf6 {[%clk
0:02:59.7]} 4. e3 {[%clk 0:02:59.1]} 4... e6 {[%clk 0:02:57.5]} 5. d4 {[%clk
0:02:59.2]} 5... d5 {[%clk 0:02:58.2]} 6. a3 {[%clk 0:02:59]} 6... Ne4 {[%clk
0:02:58.3]} 7. Bd3 {[%clk 0:02:56.1]} 7... Nxc3 {[%clk 0:02:55.2]} 8. bxc3
{[%clk 0:02:56.2]} 8... dxc4 {[%clk 0:02:55.5]} 9. Bxc4 {[%clk 0:02:56]} 9...
Be7 {[%clk 0:02:56]} 10. O-O {[%clk 0:02:55.6]} 10... O-O {[%clk 0:02:56.6]} 11.
e4 {[%clk 0:02:55]} 11... b6 {[%clk 0:02:47]} 12. Bb2 {[%clk 0:02:44.2]} 12...
Na5 {[%clk 0:02:40.8]} 13. Bd3 {[%clk 0:02:41.7]} 13... Bb7 {[%clk 0:02:29.1]}
14. Qe2 {[%clk 0:02:41.2]} 14... Rc8 {[%clk 0:02:14.1]} 15. Rad1 {[%clk
0:02:40.3]} 15... Qd7 {[%clk 0:02:01.1]} 16. Rfe1 {[%clk 0:02:35.6]} 16... Qa4
{[%clk 0:01:50.4]} 17. Nd2 {[%clk 0:01:53.2]} 17... c4 {[%clk 0:01:28.6]} 18.
Bb1 {[%clk 0:01:53.2]} 18... Bxa3 {[%clk 0:01:28.7]} 19. Bxa3 {[%clk 0:01:35.7]}
19... Qxa3 {[%clk 0:01:29.6]} 20. Qe3 {[%clk 0:01:36.4]} 20... b5 {[%clk
0:01:08]} 21. e5 {[%clk 0:01:27.7]} 21... h6 {[%clk 0:00:37.2]} 22. Ne4 {[%clk
0:01:13.7]} 22... b4 {[%clk 0:00:14.7]} 23. d5 {[%clk 0:00:37.3]} 23... Bxd5
{[%clk 0:00:05.3]} 24. Nf6+ {[%clk 0:00:36.7]} 24... Kh8 {[%clk 0:00:05.7]} 25.
Qf4 {[%clk 0:00:20.4]} 25... Qxc3 {[%clk 0:00:03.9]} 26. Re3 {[%clk 0:00:19.3]}
26... Qb2 {[%clk 0:00:03.6]} 27. Rh3 {[%clk 0:00:18.1]} 27... g5 {[%clk
0:00:01.8]} 28. Rxh6+ {[%clk 0:00:17.6]} 1-0